Cogmind - Beta 13 @@@ ROGUE MODE // 2024.04.03 @ 14:54:10 Player: DeluxeH30 Result: Destroyed by D-53 Grenadier with Mini Grenade Launcher Performance ------------- Evolutions (0) 0 Regions Visited (4) 800 Robots Destroyed (3) 15 Value Destroyed (56) 56 Prototype IDs (23) 460 Alien Tech Used (0) 0 Bonus (289) 289 TOTAL SCORE: 1620 Bonus ------- Aligned with FarCom 300 Friendly Fire -11 Cogmind --------- Core Integrity 0/250 Matter 157/300 Energy 100/100 System Corruption 0% Temperature Cool (0) Movement Core (50) Location -9/Mines Parts ------- > --- POWER (1) -------- (None) > --- PROPULSION (2) --- (None) > --- UTILITY (2) ------ (None) > --- WEAPON (2) ------- (None) > --- INVENTORY (5) ---- Ion Engine Utility Shielding PSU Rigger Datajack Makeshift Sword Peak State ------------ > --- POWER ------------ Ion Engine > --- PROPULSION ------- Aluminum Leg Aluminum Leg > --- UTILITY ---------- Medium Storage Unit Utility Shielding > --- WEAPON ----------- Assault Rifle Light Assault Rifle > --- INVENTORY -------- Light Ion Engine Light Nuclear Core Aluminum Leg Hover Unit Structural Scanner Light Armor Plating PSU Rigger Grenade Launcher Datajack Makeshift Sword [Rating: 9] Favorites ----------- Power Ion Engine Engine Ion Engine Power Core Light Nuclear Core Propulsion Aluminum Leg Leg Aluminum Leg Flight Unit Flight Unit Utility Medium Storage Unit Device Structural Scanner Storage Medium Storage Unit Protection Utility Shielding Weapon Assault Rifle Ballistic Gun Assault Rifle Launcher Grenade Launcher Build | -11 -10 -10 -10 -9 ------- Run | Yrd Mat Min Exi Min Slots Evolved . | . . . . . Power . | . . . . . Propulsion . | . . . . . Utility . | . . . . . Weapon . | . . . . . Parts Attached 23 | 5 3 . 1 14 Power 4 | 1 . . . 3 Engine 3 | 1 . . . 2 Core 1 | . . . . 1 Reactor . | . . . . . Propulsion 8 | 1 1 . . 6 Treads . | . . . . . Leg 5 | 1 1 . . 3 Wheel . | . . . . . Hover . | . . . . . Flight 3 | . . . . 3 Utility 7 | 1 2 . 1 3 Device 1 | . . . 1 . Storage 3 | 1 1 . . 1 Processor . | . . . . . Hackware . | . . . . . Protection 3 | . 1 . . 2 Artifact . | . . . . . Weapon 4 | 2 . . . 2 Energy Gun . | . . . . . Energy Cannon . | . . . . . Ballistic Gun 3 | 2 . . . 1 Ballistic Cannon . | . . . . . Launcher 1 | . . . . 1 Special Weapon . | . . . . . Impact Weapon . | . . . . . Slashing Weapon . | . . . . . Piercing Weapon . | . . . . . Special Melee Weapon . | . . . . . Unidentified Prototypes . | . . . . . Parts Lost 9 | . . . . 9 Power 2 | . . . . 2 Propulsion 3 | . . . . 3 Utility 1 | . . . . 1 Weapon 3 | . . . . 3 Highest Loss Streak 9 | . . . . 9 To Critical Strikes . | . . . . . Average Slot Usage (%) 96 | . 93 100 100 74 Engine 13 | . 14 14 14 10 Leg 26 | . 28 28 28 18 Device 6 | . . . 9 4 Storage 13 | . 14 14 14 9 Protection 6 | . 7 14 4 5 Ballistic Gun 26 | . 28 28 28 19 Naked Turns 25 | . . . . 25 Heaviest Build 21 | 13 19 19 19 21 Greatest Support 20 | 10 20 20 20 20 Greatest Overweight (x) 5 | 2 . . . 5 Average Overweight (x) . | 1 . . . . Largest Inventory Capacity 10 | 8 10 10 10 10 Average Capacity 9 | 7 8 10 10 8 Most Carried 10 | 4 8 9 10 9 Average Carried 8 | 2 4 7 9 6 Final Capacity 10 | 8 10 10 10 5 Final Carried 10 | 3 8 9 10 5 Class Distribution -------------------- 100% | Mutant Dominant Class ---------------- Mutant | -10/Materials Mutant | -10/Mines Mutant | -10/Exiles Mutant | -9/Mines Resources | -11 -10 -10 -10 -9 ----------- Run | Yrd Mat Min Exi Min Matter Collected 359 | 110 201 . . 48 Remotely . | . . . . . Salvage Created 60 | . 20 . . 40 Parts 2 | . . . . 2 Haulers Intercepted . | . . . . . Recyclers Shooed 1 | 1 . . . . Parts Field Recycled . | . . . . . Retrieved Matter . | . . . . . Parts Self-Destructed . | . . . . . Prevented . | . . . . . Kills | -11 -10 -10 -10 -9 ------- Run | Yrd Mat Min Exi Min Combat Hostiles Destroyed 5 | . . . . 5 Guns 2 | . . . . 2 AOE 3 | . . . . 3 Classes Destroyed 3 | . 1 . . 2 Operator 1 | . 1 . . . Swarmer 2 | . . . . 2 Assembled 3 | . . . . 3 Best Kill Streak 3 | . 1 . . 3 Combat Bots Only 3 | . . . . 3 Max Kills in Single Turn 2 | . 1 . . 2 Gunslinging . | . . . . . Exploded 2 | . . . . 2 Melee . | . . . . . Uniques/NPCs Destroyed . | . . . . . Combat | -11 -10 -10 -10 -9 -------- Run | Yrd Mat Min Exi Min Hostile Shots Fired 74 | . 4 . . 70 Missed 23 | . . . . 23 Damage Taken 1167 | . 42 . . 1125 Core 251 | . . . . 251 Absorbed by Shields . | . . . . . Redirected to Shielding 26 | . . . . 26 Core Remaining (%) 100 | 100 . . . . Volleys Fired 23 | 2 6 . . 15 Largest 2 | 2 2 . . 2 Hottest 50 | 40 40 . . 50 Shots Fired 44 | 3 12 . . 29 Gun 41 | 3 12 . . 26 Cannon . | . . . . . Launcher 3 | . . . . 3 Special . | . . . . . Kinetic 41 | 3 12 . . 26 Thermal . | . . . . . Explosive 3 | . . . . 3 Electromagnetic . | . . . . . Robot Hit Streak 5 | 3 5 . . 5 Robot Miss Streak 2 | . 1 . . 2 Penetration Max . | . . . . . Secondary Targets 1 | . . . . 1 Max Gunslinging Chain 1 | . . . . 1 Shots Hit Robots 26 | 3 7 . . 16 Core Hits 23 | 1 3 . . 19 Critical Kills . | . . . . . Critical Parts Destroyed . | . . . . . Critical Strikes . | . . . . . Melee Attacks . | . . . . . Impact . | . . . . . Slashing . | . . . . . Piercing . | . . . . . Sneak Attacks . | . . . . . Combat Hostiles . | . . . . . Follow-up Attacks . | . . . . . Damage Inflicted 700 | 32 68 . . 600 Guns 274 | 32 68 . . 174 Cannons . | . . . . . Explosions 426 | . . . . 426 Melee . | . . . . . Ramming . | . . . . . Kinetic 274 | 32 68 . . 174 Thermal . | . . . . . Explosive 426 | . . . . 426 Electromagnetic . | . . . . . Impact . | . . . . . Slashing . | . . . . . Piercing . | . . . . . Highest Corruption . | . . . . . Average Corruption . | . . . . . Corruption Purged . | . . . . . Corruption Blocked . | . . . . . Overload Shots . | . . . . . Overflow Damage 11 | . . . . 11 Projectiles . | . . . . . Explosions 11 | . . . . 11 Melee . | . . . . . Knockbacks . | . . . . . Impact . | . . . . . Kinetic . | . . . . . Secondary . | . . . . . Self-Inflicted Damage 38 | . . . . 38 Shots 1 | . . . . 1 Rammed . | . . . . . Targets Rammed . | . . . . . Kicked . | . . . . . Crushed . | . . . . . Highest Temperature 24 | . 6 . . 24 Average Temperature 7 | . 6 . . 7 Received Heat Transfer 144 | . 24 . . 120 Siege Activations . | . . . . . Robots Corrupted . | . . . . . Combat Hostiles . | . . . . . Parts Fried . | . . . . . Impact Corruptions . | . . . . . Robots Melted . | . . . . . Combat Hostiles . | . . . . . Parts Melted . | . . . . . Heat Transferred . | . . . . . Parts Sabotaged . | . . . . . Parts Stolen . | . . . . . Parts Stripped . | . . . . . Power Chain Reactions . | . . . . . Alert | -11 -10 -10 -10 -9 ------- Run | Yrd Mat Min Exi Min Peak Influence 84 | . 84 32 . 78 Initial 32 | . . 32 . . Average 34 | . 42 32 . 40 Maximum Alert Level . | . . . . . Low Security (%) 100 | 100 100 100 . 100 Level 1 . | . . . . . Level 2 . | . . . . . Level 3 . | . . . . . Level 4 . | . . . . . Level 5 . | . . . . . High Security . | . . . . . Max Security . | . . . . . Squads Dispatched 3 | . 2 . . 1 Investigation 1 | . 1 . . . Extermination . | . . . . . Reinforcement 2 | . 1 . . 1 Assault . | . . . . . Garrison . | . . . . . Intercept . | . . . . . Searches Triggered . | . . . . . Construction Impeded 1 | . . . . 1 Haulers Reinforced . | . . . . . Active Scanning Responses . | . . . . . Cargo Convoy Interrupts . | . . . . . Stealth | -11 -10 -10 -10 -9 --------- Run | Yrd Mat Min Exi Min Distress Signals 2 | . 2 . . . Communications Jammed . | . . . . . Distress Signals . | . . . . . Times Spotted 34 | . 6 . . 28 Peak Tracking Total 15 | . 4 . . 15 Tactical Retreats 5 | . 2 . . 3 Traps | -11 -10 -10 -10 -9 ------- Run | Yrd Mat Min Exi Min Traps Triggered . | . . . . . Indirectly . | . . . . . Trap Hack Attempts . | . . . . . Triggered . | . . . . . Disarmed . | . . . . . Reprogrammed . | . . . . . Reused . | . . . . . Traps Extracted . | . . . . . Installed . | . . . . . Triggered . | . . . . . Machines | -11 -10 -10 -10 -9 ---------- Run | Yrd Mat Min Exi Min Machines Disabled 2 | . 1 . . 1 Max in Single Turn 1 | . 1 . . 1 Machines Repaired . | . . . . . Machines Dismantled . | . . . . . Machines Sabotaged . | . . . . . Overloaded Fab Kills . | . . . . . Hacking | -11 -10 -10 -10 -9 --------- Run | Yrd Mat Min Exi Min Machines Accessed 4 | . 1 . 3 . Terminals 1 | . 1 . . . Fabricators . | . . . . . Repair Stations . | . . . . . Recycling Units . | . . . . . Scanalyzers . | . . . . . Garrison Access . | . . . . . Total Hacks 36 | . 3 . 33 . Successful 35 | . 2 . 33 . Failed 1 | . 1 . . . Catastrophic . | . . . . . Database Lockouts . | . . . . . Manual 3 | . . . 3 . Terminals 3 | . 3 . . . Fabricators . | . . . . . Repair Stations . | . . . . . Recycling Units . | . . . . . Scanalyzers . | . . . . . Garrison Access . | . . . . . Terminal Hacks 35 | . 2 . 33 . Record 32 | . . . 32 . Level Access Points 1 | . 1 . . . Branch Access Points 1 | . 1 . . . Derelict Proto ID Bank 1 | . . . 1 . Fabricator Hacks . | . . . . . Repair Station Hacks . | . . . . . Recycling Unit Hacks . | . . . . . Scanalyzer . | . . . . . Garrison Access Hacks . | . . . . . Unauthorized Hacks . | . . . . . Terminals . | . . . . . Fabricators . | . . . . . Repair Stations . | . . . . . Recycling Units . | . . . . . Scanalyzers . | . . . . . Garrison Access . | . . . . . Data Cores Recovered . | . . . . . Used . | . . . . . Hacking Detections 1 | . 1 . . . Full Trace Events . | . . . . . Feedback Events . | . . . . . Feedback Blocked . | . . . . . Robot Schematics Acquired . | . . . . . Robots Built . | . . . . . Authchips . | . . . . . Time . | . . . . . Total Robot Build Rating . | . . . . . Part Schematics Acquired . | . . . . . Parts Built . | . . . . . Authchips . | . . . . . Time . | . . . . . Total Part Build Rating . | . . . . . Parts Repaired . | . . . . . Time . | . . . . . Parts Recycled . | . . . . . Recycled Matter . | . . . . . Retrieved Matter . | . . . . . Retrieved Components . | . . . . . Parts Scanalyzed . | . . . . . Part Schematics Acquired . | . . . . . Parts Damaged . | . . . . . Bothacking | -11 -10 -10 -10 -9 ------------ Run | Yrd Mat Min Exi Min Used RIF Installer . | . . . . . Robots Hacked . | . . . . . Non-combat . | . . . . . Combat . | . . . . . Robot Hacks Applied . | . . . . . Relay Couplers Released . | . . . . . Fabnet Peak Effective % . | . . . . . Robots Rewired . | . . . . . Allies Hacked . | . . . . . Hacks Repelled . | . . . . . Allies | -11 -10 -10 -10 -9 -------- Run | Yrd Mat Min Exi Min Total Allies . | . . . . . Largest Group . | . . . . . Highest-Rated Group . | . . . . . Highest-Rated Ally . | . . . . . Total Orders . | . . . . . Ally Attacks . | . . . . . Total Damage . | . . . . . Kills . | . . . . . Allies Corrupted . | . . . . . Allies Melted . | . . . . . Intel | -11 -10 -10 -10 -9 ------- Run | Yrd Mat Min Exi Min Robot Analysis Total . | . . . . . Derelict Logs Recovered 1 | . . 1 . . Drone Launches . | . . . . . Drone Recoveries . | . . . . . Exploration | -11 -10 -10 -10 -9 ------------- Run | Yrd Mat Min Exi Min Turns Passed 1409 | 62 162 115 903 167 Spaces Moved 1066 | 29 111 91 732 103 Core 63 | 13 . . . 50 Treads . | . . . . . Legs 1002 | 16 111 91 732 52 Wheels . | . . . . . Hover . | . . . . . Flight 1 | . . . . 1 Fastest Speed 37 | 50 120 120 120 37 Average Speed 118 | 158 120 120 120 92 Slowest Speed 300 | 190 120 120 120 300 Overloaded Moves . | . . . . . Propulsion Burnouts . | . . . . . Robots Hopped . | . . . . . Cave-ins Triggered . | . . . . . Exploration Rate (%) 33 | 4 33 23 81 28 Regions Visited 4 Branch Regions 3 Pre-discovered Areas 2 | . . 1 1 . Known Exits Taken 1 | . 1 . . . Unknown Exits Taken 3 | 1 . 1 1 . Scrap Searched 1 | . . 1 . . Spaces Dug . | . . . . . Terrain Destroyed 18 | . . . . 18 Melee . | . . . . . Projectile . | . . . . . AOE 18 | . . . . 18 Terrain Rammed . | . . . . . Walls Destroyed . | . . . . . Machines Disabled . | . . . . . Actions | -11 -10 -10 -10 -9 --------- Run | Yrd Mat Min Exi Min Total 1175 | 43 128 98 757 149 Wait 24 | . 2 1 20 1 Move 1062 | 28 110 90 731 103 Hop . | . . . . . Pick Up 26 | 8 7 4 3 4 Fast Attach 6 | . . . . 6 Attach 13 | 5 2 . . 6 Detach 2 | . . . . 2 Swap 4 | . 1 . 1 2 Drop 15 | . . 3 2 10 Fire 23 | 2 6 . . 15 Melee . | . . . . . Ram . | . . . . . Kick . | . . . . . Crush . | . . . . . Escape Stasis . | . . . . . Rewire . | . . . . . Trap . | . . . . . Miscellaneous . | . . . . . Route ------- -11/Scrapyard -10/Materials (discovered 5 exits: *Mat x3 / *Min x2) -10/Mines -10/Exiles (discovered 2 exits: [*Min x2]) -9/Mines History --------- Turn | Location | Event 2 | -11/Scrapyard | Met Revision 17 30 | -11/Scrapyard | Discovered new exit (range 15) 63 | -11/Scrapyard | Entered Materials 69 | -10/Materials | Discovered new exit (range 9) 89 | -10/Materials | Identified exit to Materials 89 | -10/Materials | Identified exit to Mines 131 | -10/Materials | Met 8R-AWN 225 | -10/Materials | Entered Mines 226 | -10/Mines | Followed 8R-AWN into the Mines 302 | -10/Mines | A weapon hastily lodged in a ceiling crevice suddenly fell to the ground 326 | -10/Mines | Build established: Mutant 335 | -10/Mines | Discovered new exit (range 5) 340 | -10/Mines | Entered Exiles 375 | -10/Exiles | Welcomed by 8R-AWN 396 | -10/Exiles | Met EX-HEX 430 | -10/Exiles | Met EX-BIN 444 | -10/Exiles | Aligned with FarCom system 445 | -10/Exiles | Given EX-Vault access code 475 | -10/Exiles | Opened EX-Vault 484 | -10/Exiles | Found PSU Rigger 513 | -10/Exiles | Warned to stay clear of 0b10 Research branches 547 | -10/Exiles | Met EX-DEC 634 | -10/Exiles | Discovered new exit (range 14) 834 | -10/Exiles | Visited The Gauntlet 968 | -10/Exiles | Learned about 8R-AWN's background 1001 | -10/Exiles | Discovered new exit (range 14) 1198 | -10/Exiles | Learned location of Zion (-7) 1243 | -10/Exiles | Left Exiles lab with PSU Rigger 1243 | -10/Exiles | Entered Mines 1333 | -9/Mines | Assembled infested the area 1338 | -9/Mines | Assisted by a Guerilla fighting off Assembled 1368 | -9/Mines | Core integrity fell below 50% 1378 | -9/Mines | Core integrity fell below 20% 1410 | -9/Mines | Lost 9 parts (2p3n1u3w) 1410 | -9/Mines | Destroyed by D-53 Grenadier with Mini Grenade Launcher Last Messages --------------- 01365_ as-74418 destroyed. 01365_ as-66642 destroyed. 01365_ Lgt. Nuclear Core destroyed. 01366_ K-01 Serf collects debris. 01367_ The unstable cave ceiling collapses. 01367_ as-73184 destroyed. 01367_ as-17543 destroyed. 01367_ K-01 Serf destroyed. 01367_ as-65096 destroyed. 01369_ K-01 Serf collects debris. 01372_ Aluminum Leg destroyed. 01375_ Assault Rifle destroyed. 01379_ Aluminum Leg destroyed. 01379_ K-01 Serf destroyed. 01381_ G-34 Mercenary destroyed. 01381_ as-50396 destroyed. 01383_ Dropped Med. Storage Unit. 01384_ G-34 Mercenary destroyed. 01386_ as-10087 destroyed. 01386_ as-82775 destroyed. Map ----- +----------------------------------------------------+ | ???????????????????????? # | | ????????????????????????# % # | | ????????????????????????# ! # | | ????????????????????????# # | | ???????????????????????# = | | ??????????????????????## # | | ??????????????????????# # | | ????????????????????### %]# | | ???????????????????## [![% | | ?????????????????### =%= | | ????????????????## = | | ????????????????# # | | ????????????????# # | | ???????????###### # | | ??????????## ## ! #### | | ?????????## ##### #??? | | ????????## ##???# #??? | | ????????# ##????#### ##??? | | ????????# ##??????#######???? | | ????????## #???#### #??????? | | ?????????## ##?## #??????? | | ??????????## d### #???????? | | ???#####???## ##???????? | | ???# ##???# ##????????? | | ???# ###### ##????????? | | ???## @ ##### ##???????? | | ????### ##?## ##??????? | | ??????## #### #??????? | | ???????## ## #??????? | | ????????#### d #??????? | | ???????????## ##??????? | | ????????????## ##???????? | | ?????????????##### ##????????? | | ?????????????????## ##?????????? | | ??????????????????####??????????? | | ????????????????????????????????? | | ????????????????????????????????? | | ????????????????????????????????? | | ????????????????????????????????? | | ????????????????????????????????? | | ????????????????????????????????? | | | | | | | | | | | | | | | | | | | +----------------------------------------------------+ Best States ------------- Heat Dissipation 25 Energy Generation 14 Energy Capacity 250 Matter Stores 300 Matter Capacity 300 Sight Range 16 Terrain Scan Density 10 Armor Coverage 150 Utility Shielding 33 Evasion (%) 55 Item Schematics ----------------- None Robot Schematics ------------------ None Fabricated ------------ Nothing Alien Tech Used ----------------- None Achievements -------------- None Challenges ------------ None Game ------ Seed OmegaPropulsionCannon Manual? 0 Play Time 00:19:53 Cumulative 17.5 hours Start 2024.04.03 @ 14:35:39 End 2024.04.03 @ 14:54:10 Sessions 1 Manual Loads 0 Difficulty Rogue Special Mode None Game No. 27 Rogue 27 Adventurer 0 Explorer 0 Win Type - Total 0 Types 0/0/0/0/0/0/0/0/0 Lore% 12 Gallery% 20 Achievement% 16 Wizard Run 0 Options --------- Layout 0 ASCII 0 Keyboard 0 Movement Mouse Keybinds 0 Fullscreen 2 Font 24/Smallcaps Map View 76x50 Zoom Use 0% Tactical HUD 1 Map Filters NONE Filters NONE Steam 1 RUN: d124638f-8009-49c8-9641-86e021ef8c2c